[Event "Israel-ch Semi-final 2022"]
[Site "Ramat Gan"]
[Date "2022.06.20"]
[Round "7.4"]
[White "Chernomordik, Pavel"]
[Black "Solomon, Asif"]
[Result "1-0"]
[ECO "B06"]
[WhiteElo "2178"]
[BlackElo "2288"]
[Annotator "TA"]
[PlyCount "79"]
[EventDate "2022.05.09"]
[EventType "swiss"]
[EventCountry "ISR"]
[SourceTitle "playchess.com"]
[Source "ChessBase"]
[SourceQuality "1"]
[TimeControl "40/5400+30:1800+30"]

{[%evp 10,79,43,32,31,18,58,50,50,57,51,62,78,36,80,10,22,10,25,18,25,25,25,25,25,8,7,9,12,0,0,0,0,0,8,8,39,15,108,39,34,32,34,35,45,57,81,85,75,101,92,54,39,23,129,136,126,135,135,104,154,141,158,145,179,99,97,89,70,72,156,146]} 1. e4 {[%emt 0:00:03]} g6 {[%emt 0:00:00]} 2. d4 {[%emt 0:00:08]} d6 {[%emt 0:00:27]} 3. Nc3 {[%emt 0:00:10]} Bg7 {[%emt 0:00:21]} 4. Be3 {[%emt 0:00:04]} a6 {[%emt 0:00:37]} 5. Qd2 {[%emt 0:00:24]} b5 {[%emt 0:00:24]} 6. f3 {[%emt 0:00:03]} Bb7 {[%emt 0:00:21] B06: Modern Defence.} 7. h4 {[%emt 0:00:10]} h6 {[%emt 0:00:16][%cal Bh7h6,Bh6h5][%mdl 32]} 8. Nh3 {[%emt 0:00:12]} Nd7 {[%emt 0:01:29] White is slightly better.} 9. O-O-O {[%emt 0:00:48]} e6 {[%emt 0:09:51]} 10. g4 {[%emt 0:09:17]} Nb6 {[%emt 0:02:56]} 11. a3 {[%emt 0:08:29]} Ne7 {[%emt 0:03:26] [#]} 12. g5 $146 {[%emt 0:12:24]} (12. h5 $16) ({Predecessor:} 12. h5 g5 13. f4 gxf4 14. Bxf4 Qd7 15. g5 hxg5 16. Nxg5 Nc6 17. d5 Nd4 18. Be3 {1-0 (24) Preotu,R (2473)-Chernomordik,P (2182) Chess.com INT 2021}) 12... h5 $1 $11 {[%emt 0:04:58]} 13. Nf4 {[%emt 0:12:36]} c6 {[%emt 0:08:43] Prevents d5.} 14. Qf2 {[%emt 0:02:46][%cal Od4d5]} Nc4 {[%emt 0:16:07]} 15. Bxc4 {[%emt 0:00:49]} bxc4 {[%emt 0:00:01]} 16. Qf1 {[%emt 0:05:16]} a5 {[%emt 0:05:06]} 17. Qxc4 {[%emt 0:01:24]} Ba6 {[%emt 0:00:01]} 18. Qa2 $36 {[%emt 0:02:28][%mdl 2048] White has good play.} O-O {[%emt 0:00:28]} 19. Nd3 {[%emt 0:04:18]} Qb6 {[%emt 0:01:37]} 20. Na4 {[%emt 0:02:30]} Qa7 {[%emt 0:02:44]} 21. Rhe1 {[%emt 0:10:25]} Bxd4 {[%emt 0:06:05]} 22. Bxd4 {[%emt 0:01:19]} Qxd4 {[%emt 0:00:04]} 23. Ndc5 {[%emt 0:00:15] Pair of Knights!} Qe5 {[%emt 0:04:04]} (23... Qf2 $1 $11 24. Nxa6 Rxa6) 24. Nxa6 {[%emt 0:02:11]} (24. Nd7 $16 Qf4+ 25. Kb1) 24... Rxa6 {[%emt 0:07:11]} 25. Qc4 {[%emt 0:00:03]} Qf4+ {[%emt 0:03:18]} 26. Kb1 {[%emt 0:00:05]} Raa8 {[%emt 0:00:18]} 27. Qd4 {[%emt 0:04:43]} (27. Nb6 Rad8 $11) 27... Rfd8 {[%emt 0:02:34]} 28. Qf6 {[%emt 0:00:10]} Qxf6 {[%emt 0:01:14]} 29. gxf6 {[%emt 0:00:03]} Nc8 {[%emt 0:00:01]} 30. c4 {[%emt 0:01:02]} Rb8 {[%emt 0:08:55]} 31. Rd3 {[%emt 0:00:18]} Re8 {[%emt 0:02:52]} (31... d5 $11 {remains equal.}) 32. c5 $16 {[%emt 0:05:08]} dxc5 {[%emt 0:00:14]} 33. Nxc5 {[%emt 0:00:11]} Nb6 {[%emt 0:02:19]} 34. Rc1 {[%emt 0:01:01] Prevents Nc4. White is much more active.} Red8 {[%emt 0:03:55]} ({Better is} 34... a4) 35. Rxd8+ {[%emt 0:02:50]} Rxd8 {[%emt 0:00:03]} 36. Nb7 {[%emt 0:00:05][%csl LRa5,LRc6,LRd8]} Rd3 {[%emt 0:00:39] [#]} 37. Rxc6 {[%emt 0:01:14]} ({Don't take} 37. Nxa5 Rxf3 38. Rxc6 (38. Nxc6 Rxf6 39. b3 Rf4 $14) 38... Nd7 $16) (37. f4 $1 $18) 37... Nd7 {[%emt 0:01:55]} 38. Rc8+ {[%emt 0:04:56]} Kh7 {[%emt 0:00:41]} 39. Nd8 {[%emt 0:00:05]} Nb6 {[%emt 0:02:49] [#]} (39... g5 $142) 40. Rb8 $1 {[%emt 0:00:07] Weighted Error Value: White=0.15 (very precise) /Black=0.23 (precise)} ({Resist} 40. Rc6 $6 Rxd8 41. Rxb6 g5 $16) 1-0

[Event "Israel-ch Semi-final 2022"]
[Site "Ramat Gan"]
[Date "2022.06.20"]
[Round "7.5"]
[White "Bin-Nun, Peleg"]
[Black "Ribshtein, Nati"]
[Result "1-0"]
[ECO "B40"]
[WhiteElo "2056"]
[BlackElo "2286"]
[Annotator "TA"]
[PlyCount "68"]
[EventDate "2022.05.09"]
[EventType "swiss"]
[EventCountry "ISR"]
[SourceTitle "playchess.com"]
[Source "ChessBase"]
[SourceQuality "1"]
[TimeControl "40/5400+30:1800+30"]

{[%evp 9,68,16,14,27,31,22,25,0,34,35,27,16,37,30,40,34,90,85,75,72,114,120,131,127,116,92,93,96,99,104,112,104,125,62,78,84,84,84,82,26,41,17,66,68,81,64,189,192,185,182,185,170,170,163,288,284,277,275,1935,1712,2525]} 1. e4 {[%emt 0:00:03]} c5 {[%emt 0:00:58]} 2. Nf3 {[%emt 0:00:06]} e6 {[%emt 0:01:35]} 3. g3 {[%emt 0:00:09]} Nc6 {[%emt 0:00:34]} 4. Bg2 {[%emt 0:00:07]} Nf6 {[%emt 0:01:30]} 5. Qe2 {[%emt 0:00:10]} d5 {[%emt 0:00:55]} 6. exd5 {[%emt 0:00:07] B40: Sicilian: 2...e6, Unusual lines.} Nxd5 {[%emt 0:00:22]} 7. O-O {[%emt 0:00:06]} Be7 {[%emt 0:00:29]} 8. Rd1 {[%emt 0:00:06] White has an edge.} O-O {[%emt 0:08:59][%cal Oe6e5]} 9. d4 {[%emt 0:00:12] Inhibits e5.} cxd4 {[%emt 0:00:56]} 10. Nxd4 {[%emt 0:00:05]} Nxd4 {[%emt 1:19:12]} 11. Rxd4 {[%emt 0:00:05]} Bf6 {[%emt 0:00:00]} 12. Rd1 {[%emt 0:00:04]} Qb6 {[%emt 0:00:00]} ({Black should play} 12... b5 $14) 13. c4 $16 {[%emt 0:03:21]} Ne7 {[%emt 0:00:00][%cal Bd5e7,Be7c6,Bc6d4][%mdl 32]} 14. Nc3 {[%emt 0:01:02]} Nc6 {[%emt 0:00:00]} 15. Be3 {[%emt 0:06:56]} Nd4 {[%emt 0:00:00]} 16. Qd2 {[%emt 0:14:05]} Rd8 {[%emt 0:00:00] [#]} 17. Nd5 $146 {[%emt 0:06:49][%mdl 512] Inhibits Qc7.} ({Predecessor:} 17. Ne4 e5 18. c5 Qe6 19. Nxf6+ gxf6 20. Qa5 Qe7 21. Bxd4 exd4 22. Re1 Be6 23. Rad1 {0-1 (72) Sychev,K (2555)-Florescu,C (2289) Chess.com INT 2021}) 17... exd5 {[%emt 0:00:00]} 18. Bxd4 {[%emt 0:00:03]} dxc4 {[%emt 0:00:00]} 19. Bxb6 {[%emt 0:00:02][%mdl 64] Threatening mate with Qxd8+. Discovered Attack} Rxd2 {[%emt 0:00:00]} 20. Rxd2 {[%emt 0:00:08]} axb6 {[%emt 0:00:00] [#]} 21. Rd5 {[%emt 0:37:14]} (21. Rd6 $1 $16 {[%cal Rd6b6]}) 21... g6 {[%emt 0:00:00]} 22. Rb5 {[%emt 0:02:31]} Be6 {[%emt 0:00:00]} 23. Bf3 {[%emt 0:13:19]} Bd4 {[%emt 0:00:00]} 24. Rd1 {[%emt 0:01:01]} (24. Bxb7 $16 Ra7 25. Rd1) 24... Bc5 $1 $11 {[%emt 0:00:00]} 25. Bxb7 {[%emt 0:02:22]} (25. a3 $5 {[%cal Rf3b7]}) 25... Ra7 {[%emt 0:00:00]} (25... Rxa2 $11 26. Bd5 Bxd5 27. Rxd5 Ra1+ 28. Kg2 Rb1) 26. Bd5 $14 {[%emt 0:05:04]} Rd7 {[%emt 0:00:00]} 27. Bf3 {[%emt 0:00:15]} Rxd1+ {[%emt 0:00:00] A mistake that costs the game.} (27... Ra7 $1 $14) 28. Bxd1 $18 {[%emt 0:00:01]} Bd7 {[%emt 0:00:00] [#]} 29. Rxc5 {[%emt 0:00:05][%mdl 512]} bxc5 {[%emt 0:00:00] KB-KB} 30. Kf1 {[%emt 0:01:10]} Kf8 {[%emt 0:00:00]} 31. Ke2 {[%emt 0:00:15] Strongly threatening Kd2.} Ke7 {[%emt 0:00:00]} (31... c3 {might work better.} 32. bxc3 Ke7) 32. Kd2 {[%emt 0:00:07]} Kd6 {[%emt 0:00:00]} 33. Kc3 {[%emt 0:00:07]} Kc6 $2 {[%emt 0:00:00]} (33... f6 34. a4 Bh3) 34. Ba4+ {[%emt 0:00:07]} Kd5 {[%emt 0:12:00] Weighted Error Value: White=0.08 (flawless) /Black=0.20 (precise)} 1-0

[Event "Israel-ch Semi-final 2022"]
[Site "Ramat Gan"]
[Date "2022.06.20"]
[Round "7.6"]
[White "Stolyarsky, Yegor"]
[Black "Reprun, Nadejda"]
[Result "1-0"]
[ECO "D78"]
[WhiteElo "2174"]
[BlackElo "1954"]
[Annotator "TA"]
[PlyCount "37"]
[EventDate "2022.05.09"]
[EventType "swiss"]
[EventCountry "ISR"]
[SourceTitle "playchess.com"]
[Source "ChessBase"]
[SourceQuality "1"]
[TimeControl "40/5400+30:1800+30"]

{[%evp 16,37,37,10,53,45,79,68,68,63,100,102,113,61,80,40,54,53,51,34,110,63,106,82]} 1. d4 {[%emt 0:00:07]} d5 {[%emt 0:00:03]} 2. c4 {[%emt 0:00:06]} c6 {[%emt 0:00:04]} 3. Nf3 {[%emt 0:00:16]} Nf6 {[%emt 0:00:04]} 4. g3 {[%emt 0:00:10]} g6 {[%emt 0:00:04]} 5. Bg2 {[%emt 0:00:05]} Bg7 {[%emt 0:00:03]} 6. O-O {[%emt 0:00:49]} O-O {[%emt 0:00:11]} 7. Qb3 {[%emt 0:00:22]} dxc4 {[%emt 0:10:29]} 8. Qxc4 {[%emt 0:00:08]} Be6 {[%emt 0:00:51] 8...b5 is the recent fashion.} 9. Qc2 {[%emt 0:00:33]} Bd5 {[%emt 0:01:55] [#] Prevents e4. D78: Fianchetto Grünfeld: 6 0-0 c6.} (9... Bf5 $5 {[%cal Rf5c2]} 10. Qb3 Qb6 $11) 10. Rd1 $146 {[%emt 0:01:44]} ({Predecessor:} 10. Nbd2 Na6 11. e4 Be6 12. a3 Nh5 13. Nb3 Qb6 14. Nc5 Nxc5 15. dxc5 Qb3 16. Qxb3 Bxb3 17. e5 {1-0 (39) Marodi,M (2119)-Soergel,F (2144) Budapest 2004}) 10... Nbd7 {[%emt 0:14:32]} 11. Nc3 {[%emt 0:00:45] Prevents Be4.} Bxf3 {[%emt 0:00:45] White is slightly better.} 12. Bxf3 {[%emt 0:00:28]} e6 {[%emt 0:01:43]} 13. e4 {[%emt 0:05:10] White is more active.} Rc8 {[%emt 0:04:16]} 14. Bf4 {[%emt 0:06:34]} (14. Bg2 $16) 14... Qe7 $14 {[%emt 0:03:05]} 15. Qe2 {[%emt 0:02:04]} e5 {[%emt 0:01:05]} 16. Be3 {[%emt 0:01:23]} exd4 {[%emt 0:08:04]} 17. Bxd4 {[%emt 0:00:08]} c5 {[%emt 0:03:29]} (17... Rcd8 $14) 18. Be3 {[%emt 0:00:31]} ({Better is} 18. Bxf6 $16 Nxf6 19. e5) 18... a6 {[%emt 0:03:59]} 19. a4 {[%emt 0:05:26] Weighted Error Value: White=0.20 (precise) /Black=0.22 (precise)} 1-0

[Event "Israel-ch Semi-final 2022"]
[Site "Ramat Gan"]
[Date "2022.06.20"]
[Round "7.7"]
[White "Shimshovich, Asaf"]
[Black "Lahav, Michal"]
[Result "0-1"]
[ECO "B35"]
[WhiteElo "1816"]
[BlackElo "2199"]
[Annotator "TA"]
[PlyCount "82"]
[EventDate "2022.05.09"]
[EventType "swiss"]
[EventCountry "ISR"]
[SourceTitle "playchess.com"]
[Source "ChessBase"]
[SourceQuality "1"]
[TimeControl "40/5400+30:1800+30"]

{[%evp 21,82,22,63,33,28,24,29,25,33,12,25,-18,-10,-8,0,0,0,0,0,0,0,0,0,-19,-13,-50,-49,-71,-41,-43,-31,-94,-92,-96,-92,-86,-74,-85,-85,-83,17,-31,-35,-168,-155,-649,-636,-1450,-1441,-1435,-1469,-1410,-1343,-1308,-924,-29985,-29986,-29986,-29987,-29987,-29985,-29986,-29987]} 1. e4 {[%emt 0:00:03]} c5 {[%emt 0:07:15]} 2. Nf3 {[%emt 0:00:05]} Nc6 {[%emt 0:00:29]} 3. d4 {[%emt 0:00:08]} cxd4 {[%emt 0:00:05]} 4. Nxd4 {[%emt 0:00:04]} g6 {[%emt 0:00:04]} 5. Nc3 {[%emt 0:00:15]} Bg7 {[%emt 0:00:07]} 6. Be3 {[%emt 0:00:14]} Nf6 {[%emt 0:00:10]} 7. Bc4 {[%emt 0:00:24]} O-O {[%emt 0:00:46]} 8. Bb3 {[%emt 0:00:22]} Ng4 9. Qxg4 {[%emt 0:09:50]} Nxd4 {[%emt 0:07:25]} 10. Qd1 {[%emt 0:00:44]} Nxb3 11. axb3 {[%emt 0:00:09]} a6 {[%emt 0:09:59]} 12. O-O {[%emt 0:02:24] B35: Sicilian: Accelerated Dragon with 5 Nc3: main line.} (12. Nd5 $5 {[%cal Re3b6]} d6 13. Bb6 $14) 12... d6 {[%emt 0:02:33]} 13. Qd2 {[%emt 0:16:23]} Bd7 {[%emt 0:05:55]} 14. Rad1 {[%emt 0:03:43] White has an edge.} Bc6 {[%emt 0:03:24] [#]} 15. Nd5 $146 {[%emt 0:01:39]} ({Predecessor:} 15. Bd4 Bxd4 16. Qxd4 Rc8 17. f4 Qa5 18. b4 Qc7 19. f5 f6 20. Rf2 Kg7 21. Ne2 {½-½ (56) Zandonai Ignacio,A (1971)-Santos,L (1888) Goiania 2017}) 15... b5 {[%emt 0:10:35]} 16. c4 {[%emt 0:06:39]} (16. Bh6 {with more complications.} Bxh6 17. Qxh6 e6 18. Rd3) 16... Rb8 {[%emt 0:10:27]} (16... Re8 {seems wilder.} 17. Bb6 Qb8 18. Bd4 Bxd4 19. Qxd4 bxc4 20. bxc4 Ra7) 17. c5 {[%emt 0:04:32]} dxc5 {[%emt 0:11:49]} 18. Bxc5 {[%emt 0:00:53]} Bxd5 {[%emt 0:00:21]} 19. exd5 {[%emt 0:00:37] Threatens to win with d6.} Qd7 {[%emt 0:05:39]} 20. Rfe1 {[%emt 0:02:49]} Rfe8 {[%emt 0:00:08]} 21. h3 {[%emt 0:02:26]} Qb7 {[%emt 0:02:14]} 22. Qf4 {[%emt 0:09:22][%cal Oc5e7] aiming for Bxe7!} Rbd8 {[%emt 0:01:44]} 23. Qf3 {[%emt 0:15:27]} Bxb2 {[%emt 0:02:11]} 24. Re2 {[%emt 0:00:56]} Bg7 {[%emt 0:02:56]} 25. b4 {[%emt 0:02:44]} e6 {[%emt 0:03:25][%cal Re6d5]} 26. Red2 {[%emt 0:02:00]} (26. d6 $15 Qxf3 27. gxf3) 26... exd5 $17 {[%emt 0:00:54]} 27. Rxd5 {[%emt 0:00:10]} Rxd5 {[%emt 0:00:13]} 28. Rxd5 {[%emt 0:00:49][%cal Od5d8] [#] Strongly threatening Rd8!} Qc7 {[%emt 0:01:50][%cal Re8e1] Against Rd8} 29. g3 {[%emt 0:01:42]} h5 {[%emt 0:00:26]} 30. Rd6 {[%emt 0:01:04]} a5 {[%emt 0:03:51]} (30... Bf8 $17 31. Rc6 Qd7) 31. Qd5 {[%emt 0:01:06]} (31. Ra6 $11 Qe5 32. Ra7) 31... Re5 $15 {[%emt 0:01:16]} 32. Qa8+ {[%emt 0:05:13]} (32. Rd8+ $15 Kh7 33. Rd7 Rxd5 34. Rxc7 axb4 35. Bxb4) 32... Kh7 $19 {[%emt 0:00:05]} 33. Rc6 $2 {[%emt 0:01:11] Now White is beyond hope.} (33. Qc6 $17 Qxc6 34. Rxc6) 33... Qd7 {[%emt 0:02:27]} 34. Kh2 {[%emt 0:01:44]} axb4 {[%emt 0:00:30][%cal Ba5b4,Bb4b3,Bb3b2][%mdl 32]} 35. Rd6 {[%emt 0:01:37]} Qf5 {[%emt 0:00:24]} 36. Bd4 {[%emt 0:00:38]} Re2 {[%emt 0:00:32] [#] ( -> ...Bxd4)} 37. Be3 {[%emt 0:01:44]} b3 {[%emt 0:01:28]} 38. Rd5 {[%emt 0:00:42]} Rxf2+ {[%emt 0:00:37] Black mates.} 39. Bxf2 {[%emt 0:00:30]} Qxf2+ {[%emt 0:00:06]} 40. Kh1 {[%emt 0:00:05]} Qf3+ {[%emt 0:00:22]} 41. Kh2 {[%emt 0:30:06]} b2 {[%emt 0:30:46] Weighted Error Value: White=0.89/Black=0.22 (precise)} 0-1

[Event "Israel-ch Semi-final 2022"]
[Site "Ramat Gan"]
[Date "2022.06.20"]
[Round "7.8"]
[White "Yaniv, Ori"]
[Black "Horesh, Tal"]
[Result "1-0"]
[ECO "E13"]
[WhiteElo "2143"]
[BlackElo "1973"]
[Annotator "TA"]
[PlyCount "83"]
[EventDate "2022.05.09"]
[EventType "swiss"]
[EventCountry "ISR"]
[SourceTitle "playchess.com"]
[Source "ChessBase"]
[SourceQuality "1"]
[TimeControl "40/5400+30:1800+30"]

{[%evp 21,83,61,62,52,43,51,48,41,45,11,58,53,59,49,65,60,58,14,81,67,128,107,195,78,312,315,306,63,56,55,45,47,58,62,61,58,178,183,262,260,420,405,413,412,411,395,459,450,473,360,362,366,350,337,463,441,590,589,670,660,651,646,713,704]} 1. d4 {[%emt 0:00:03]} Nf6 {[%emt 0:37:03]} 2. c4 {[%emt 0:00:45]} c5 {[%emt 0:00:10]} 3. e3 {[%emt 0:00:47]} e6 {[%emt 0:00:30]} 4. Nf3 {[%emt 0:00:29]} b6 {[%emt 0:00:29]} 5. Nc3 {[%emt 0:00:31]} cxd4 {[%emt 0:00:46]} 6. exd4 {[%emt 0:00:09]} Bb4 {[%emt 0:00:29]} 7. Bd3 {[%emt 0:02:24]} Bxc3+ {[%emt 0:06:55]} 8. bxc3 {[%emt 0:02:32]} O-O {[%emt 0:04:02]} 9. O-O {[%emt 0:00:33]} Bb7 {[%emt 0:00:49]} 10. Bg5 {[%emt 0:02:18]} h6 {[%emt 0:04:55]} 11. Bh4 {[%emt 0:00:02]} d6 {[%emt 0:00:21]} 12. Re1 {[%emt 0:02:34] White is more active. E13: Queen's Indian/Nimzo-Indian hybrid: 4 Nc3 Bb7 5 Bg5 h6 6 Bh4 Bb4.} Nbd7 {[%emt 0:00:36]} 13. Nd2 {[%emt 0:05:47] [#]} Qc8 $146 {[%emt 0:05:09]} ({Predecessor:} 13... Qc7 14. a4 Rfe8 15. Bf1 Rac8 16. a5 d5 17. Bg3 Qc6 18. Rb1 dxc4 19. Nxc4 Ne4 20. Rxe4 Qxe4 {1-0 (31) Nguyen,H (2484)-Csiszar,C (2450) Zalakaros 2009}) 14. Rc1 {[%emt 0:01:29] White is slightly better.} Re8 {[%emt 0:06:05]} 15. f3 {[%emt 0:03:10]} d5 {[%emt 0:08:17]} (15... Nh5 $11) 16. cxd5 $14 {[%emt 0:00:17]} exd5 {[%emt 0:00:22]} 17. Nf1 {[%emt 0:02:53]} Ba6 {[%emt 0:02:08]} 18. Rxe8+ {[%emt 0:01:28]} Nxe8 {[%emt 0:00:04]} 19. Bb1 {[%emt 0:00:30] This bishop pair is nice.} (19. Ne3 $5 {[%cal Re3d5]} Bxd3 20. Qxd3 $14) 19... Nef6 {[%emt 0:04:17]} (19... Bxf1 $11 20. Qxf1 Qc6) 20. Ne3 $16 {[%emt 0:01:10]} Qe8 {[%emt 0:01:47]} (20... Bc4 $14) 21. Qd2 {[%emt 0:01:24]} Rc8 {[%emt 0:02:10]} (21... Qf8 $16 {might work better.}) 22. Nf5 {[%emt 0:00:31]} (22. Bf5 $18 {has better winning chances.}) 22... Qf8 $2 {[%emt 0:01:26] [#]} (22... Rc6 $16 {was worth a try.}) 23. Bg3 $1 $18 {[%emt 0:04:53]} Rc6 {[%emt 0:02:23] Inhibits Bd6.} 24. Ne3 $2 {[%emt 0:07:45]} (24. Re1 $18 {Black must now prevent Ne7+.} Re6 25. Rxe6 fxe6 26. Bd6) 24... Qa3 $14 {[%emt 0:01:13]} 25. Be1 {[%emt 0:00:55]} Re6 {[%emt 0:03:46]} 26. g4 {[%emt 0:00:27]} Qe7 {[%emt 0:02:03]} 27. Bf2 {[%emt 0:00:03]} Nf8 {[%emt 0:00:59]} 28. Re1 {[%emt 0:01:07] Bf5 is the strong threat.} Ng6 {[%emt 0:00:59]} ({Better is} 28... Qb7 $14) 29. Bf5 $18 {[%emt 0:00:25]} Nf4 {[%emt 0:03:36]} (29... Qf8 $142 30. Bxe6 fxe6) 30. Bg3 {[%emt 0:00:32]} ({Don't take} 30. Bxe6 Nh3+ 31. Kg2 Nf4+ 32. Kh1 Nxe6 $18) 30... Ne2+ {[%emt 0:00:51]} (30... Ng6 {keeps fighting.} 31. Bxe6 fxe6) 31. Rxe2 {[%emt 0:00:07]} Bxe2 {[%emt 0:00:04]} 32. Bxe6 {[%emt 0:00:06]} Bxf3 {[%emt 0:00:03]} 33. Bf5 {[%emt 0:00:33]} g6 {[%emt 0:01:25]} 34. Qf2 {[%emt 0:01:38]} Be4 {[%emt 0:00:03]} 35. Bxe4 {[%emt 0:00:14]} Nxe4 {[%emt 0:00:03]} 36. Qf3 {[%emt 0:03:20]} ({And not} 36. Nxd5 Qg5 37. Qf4 Qxd5 $11) 36... Ng5 {[%emt 0:00:57]} 37. Qe2 {[%emt 0:00:57] Hoping for h4.} Qe4 {[%emt 0:01:09] ( -> ...Nh3+)} 38. h4 {[%emt 0:00:01] White is clearly winning.} Ne6 {[%emt 0:00:25]} 39. Kf2 {[%emt 0:00:45]} f5 {[%emt 0:00:20]} 40. gxf5 {[%emt 0:00:23]} gxf5 {[%emt 0:00:08]} 41. Ng2 {[%emt 0:30:53]} f4 {[%emt 0:02:40] [#]} 42. Nxf4 $1 {[%emt 0:00:00][%mdl 512] Weighted Error Value: White=0.24 (precise) /Black=0.53} 1-0

[Event "Israel-ch Semi-final 2022"]
[Site "Ramat Gan"]
[Date "2022.06.27"]
[Round "8.1"]
[White "Dvoirys, Semen I."]
[Black "Aharonovich, Itamar"]
[Result "1-0"]
[ECO "C84"]
[WhiteElo "2439"]
[BlackElo "2324"]
[Annotator "TA"]
[PlyCount "113"]
[EventDate "2022.05.09"]
[EventType "swiss"]
[EventCountry "ISR"]
[SourceTitle "playchess.com"]
[Source "ChessBase"]
[SourceQuality "1"]
[TimeControl "40/5400+30:1800+30"]

{[%evp 16,113,29,0,0,0,0,0,0,0,0,0,0,0,0,-11,0,0,0,0,0,0,25,10,20,18,51,32,71,71,60,66,56,56,87,80,135,132,127,66,70,51,76,73,71,73,82,76,77,63,102,99,115,104,88,97,116,112,170,167,164,143,158,151,361,359,357,348,498,497,493,470,640,632,632,618,979,312,329,328,321,318,318,310,319,214,480,480,469,462,455,448,422,403,597,566,490,420,493,436]} 1. e4 {[%emt 0:00:03]} e5 {[%emt 0:00:10]} 2. Nf3 {[%emt 0:00:05]} Nc6 {[%emt 0:00:09]} 3. Bb5 {[%emt 0:00:19][%cal Bf1b5,Bb5a4,Ba4b3,Bb3a2][%mdl 32]} a6 {[%emt 0:00:06]} 4. Ba4 {[%emt 0:00:06]} Nf6 {[%emt 0:00:09]} 5. O-O {[%emt 0:00:05]} b5 {[%emt 0:00:04]} 6. Bb3 {[%emt 0:00:10]} Bb7 {[%emt 0:00:02]} 7. d3 {[%emt 0:00:42]} Be7 {[%emt 0:00:17]} 8. a4 {[%emt 0:00:26]} O-O {[%emt 0:01:27]} 9. Nc3 {[%emt 0:03:56]} Na5 {[%emt 0:00:35] C84: Closed Ruy Lopez: Unusual White 6th moves.} 10. Ba2 {[%emt 0:12:56]} b4 {[%emt 0:00:14]} 11. Ne2 {[%emt 0:00:35]} d5 {[%emt 0:00:18] The position is equal.} 12. exd5 {[%emt 0:04:07]} Bxd5 {[%emt 0:02:47]} 13. Bxd5 {[%emt 0:00:18]} Qxd5 {[%emt 0:00:02]} 14. Ng3 {[%emt 0:03:21]} Nc6 {[%emt 0:11:20]} 15. Nf5 {[%emt 0:08:22] [#]} Rae8 $146 {[%emt 0:03:57]} ({Predecessor:} 15... h6 16. Be3 Rfe8 17. Re1 Rad8 18. Nd2 Bf8 19. Ng3 Bc5 20. Nh5 Nxh5 21. Qxh5 Nd4 {0-1 (55) Cole,S (1921)-Barbalic,Z (2016) ICCF email 2018}) 16. Re1 {[%emt 0:01:48]} Bc5 {[%emt 0:01:57]} 17. Qd2 {[%emt 0:05:56] Black must now prevent Qg5.} Re6 {[%emt 0:04:12]} 18. Qg5 {[%emt 0:02:04][%csl Gf5][%cal Rg5g7] Against Ng4} Ne8 {[%emt 0:04:00]} 19. Be3 {[%emt 0:04:01]} Be7 {[%emt 0:06:05]} 20. Qg4 {[%emt 0:01:43]} a5 {[%emt 0:13:07]} 21. h4 {[%emt 0:05:47]} ({But not} 21. Nxe7+ Nxe7 22. Rac1 Nf6 $11) 21... Rg6 {[%emt 0:09:01]} 22. Qe4 {[%emt 0:01:57]} Qxe4 {[%emt 0:07:52]} 23. dxe4 {[%emt 0:02:31][%cal Of3e5] Nxe5! is the strong threat.} Re6 {[%emt 0:00:14]} 24. Rad1 {[%emt 0:03:04]} f6 {[%emt 0:06:23] Against Ng5} 25. Rd5 {[%emt 0:05:05]} ({Much weaker is} 25. Nxe7+ Nxe7 26. Rd7 Nc8 $11) 25... Bd6 {[%emt 0:03:16] [#]} (25... Nd6 $142) 26. Nd2 $1 $16 {[%emt 0:10:35] White is much more active.} g6 {[%emt 0:02:03]} 27. Nxd6 {[%emt 0:02:09]} (27. Nh6+ $16 Kg7 28. Nc4) 27... Nxd6 $14 {[%emt 0:00:13]} 28. Bc5 {[%emt 0:00:11]} Rc8 {[%emt 0:06:00]} 29. Rd1 {[%emt 0:02:36]} Ne7 {[%emt 0:03:58]} 30. Rd3 {[%emt 0:00:13]} Nc6 {[%emt 0:01:36]} 31. f3 {[%emt 0:03:07]} f5 {[%emt 0:02:12]} 32. Re1 {[%emt 0:04:10]} Nb7 {[%emt 0:01:24]} 33. Rd5 {[%emt 0:00:54]} Rd8 {[%emt 0:01:44] [#]} 34. Nc4 $1 {[%emt 0:01:38]} fxe4 {[%emt 0:00:08]} 35. fxe4 {[%emt 0:00:23]} Ree8 {[%emt 0:01:52]} 36. Bf2 {[%emt 0:00:58]} Kf7 {[%emt 0:03:07]} (36... Nd4 $16) 37. Rb5 $18 {[%emt 0:04:25]} Nd6 {[%emt 0:01:20]} 38. Nxa5 {[%emt 0:00:44]} Nxb5 {[%emt 0:03:29]} 39. Nxc6 {[%emt 0:00:07]} Rd2 {[%emt 0:01:12] A mistake that costs the game.} (39... Nd4 $16 40. Nxd8+ Rxd8) 40. axb5 {[%emt 0:00:07]} Rxc2 {[%emt 0:00:09]} 41. b3 {[%emt 0:32:56]} ({Resist} 41. Nxb4 Rxb2 42. Nd5 Rc8 $18) 41... Rb2 {[%emt 0:06:46] [#]} (41... Rc3 $142 42. Rb1 Ra8 43. Nxe5+ Ke8) 42. Nxe5+ $1 {[%emt 0:00:00][%mdl 512]} Kg8 {[%emt 0:01:25]} (42... Ke7 43. Bc5+) 43. Nd7 {[%emt 0:00:00]} Ra8 {[%emt 0:01:15]} 44. Nf6+ {[%emt 0:00:00]} Kf7 {[%emt 0:01:20]} 45. Nd5 {[%emt 0:00:00]} Raa2 {[%emt 0:02:58]} 46. Nxb4 $2 {[%emt 0:00:00]} (46. Rf1 {Hoping for Bd4+.} Ke8 47. Nxc7+ Kd8 48. b6) 46... Rxf2 {[%emt 0:00:16]} 47. Nxa2 {[%emt 0:00:00]} Rxa2 {[%emt 0:00:15][%mdl 4096] Endgame KR-KR} 48. Rc1 {[%emt 0:00:00] Inhibits Rc2.} Ra7 {[%emt 0:00:53]} 49. Rc6 {[%emt 0:00:00]} Rb7 {[%emt 0:00:22]} 50. Kf2 {[%emt 0:00:00] Strongly threatening Rc5.} h6 $2 {[%emt 0:00:19]} (50... Rxb5 51. Rxc7+ Kg8) 51. b4 {[%emt 0:00:00]} Rxb5 {[%emt 0:00:18]} 52. Rxc7+ {[%emt 0:00:00]} Kf6 {[%emt 0:00:09]} 53. Rc6+ {[%emt 0:00:00]} Kf7 {[%emt 0:00:10]} 54. Rc4 {[%emt 0:00:00]} g5 {[%emt 0:00:21]} (54... Ke6 $142 55. g3 Re5) 55. hxg5 {[%emt 0:00:00]} hxg5 {[%emt 0:00:24]} 56. Ke3 {[%emt 0:00:00]} Kg6 {[%emt 0:00:16]} 57. g4 {[%emt 0:00:00] Weighted Error Value: White=0.20 (precise) /Black=0.34} 1-0